lending/lending_fUSD_20241120
["ID","MTS","AMOUNT","RATE_DAILY","PERIOD"]
[342803516,1732143111791,-873.31,0.00056438,120]
[342803517,1732143111807,-500.0,0.00056438,120]
[342803518,1732143111822,-897.49,0.00056438,120]
[342803519,1732143111837,-500.0,0.00056438,120]
[342803520,1732143111853,-5067.66,0.00056438,120]
[342803521,1732143111869,-500.0,0.00056438,120]
[342803522,1732143111885,-500.0,0.00056438,120]
[342803523,1732143112241,-615.04,0.00056438,120]
[342803524,1732143112260,-1213.36,0.00056438,120]
[342803525,1732143112272,-537.82,0.00056438,120]
[342803526,1732143112282,-500.0,0.00056438,120]
[342803527,1732143112292,-578.46794942,0.00056438,120]
[342803528,1732143112302,-500.0,0.00056438,120]
[342803529,1732143112312,-500.0,0.00056438,120]
[342803530,1732143112324,-911.56,0.00056438,120]
[342803531,1732143112334,-1001.49,0.00056438,120]
[342803532,1732143112343,-1621.15,0.00056438,120]
[342803533,1732143112353,-1004.9,0.00056438,120]
[342803534,1732143112364,-1363.03,0.00056438,120]
[342803535,1732143112374,-670.6,0.00056438,120]
[342803536,1732143112384,-4519.72,0.00056438,120]
[342803537,1732143112395,-681.14,0.00056438,120]
[342803538,1732143112405,-597.02,0.00056438,120]
[342803539,1732143112416,-1529.3,0.00056438,120]
[342803540,1732143112428,-151.0,0.00056438,120]
[342803541,1732143112437,-500.0,0.00056438,120]
[342803542,1732143112447,-500.0,0.00056438,120]
[342803543,1732143112456,-500.0,0.00056438,120]
[342803544,1732143112465,-5382.48,0.00056438,120]
[342803545,1732143112475,-2209.36,0.00056438,120]
[342803546,1732143112484,-640.41,0.00056438,120]
[342803547,1732143112494,-1045.28,0.00056438,120]
[342803548,1732143112504,-500.0,0.00056438,120]
[342803549,1732143112514,-151.0,0.00056438,120]
[342803550,1732143112524,-500.0,0.00056438,120]
[342803551,1732143112533,-3525.53,0.00056438,120]
[342803552,1732143112542,-5113.62,0.00056438,120]
[342803553,1732143112551,-500.0,0.00056438,120]
[342803554,1732143112562,-5128.91,0.00056438,120]
[342803555,1732143112572,-909.91,0.00056438,120]
[342803556,1732143112581,-500.0,0.00056438,120]
[342803557,1732143112592,-20000.0,0.000565,120]
[342803558,1732143112603,-250.0,0.000566,30]
[342803559,1732143112612,-500.0,0.00056712,120]
[342803560,1732143112623,-500.0,0.00056712,120]
[342803561,1732143112632,-500.0,0.00056712,120]
[342803562,1732143112642,-500.0,0.00056712,120]
[342803563,1732143112651,-949.28,0.00056712,120]
[342803564,1732143112661,-588.18,0.00056712,120]
[342803565,1732143112670,-500.0,0.00056712,120]
[342803566,1732143112681,-500.0,0.00056712,120]
[342803567,1732143112690,-216.87,0.00056712,7]
[342803568,1732143112699,-500.0,0.00056712,120]
[342803569,1732143112708,-1647.84,0.00056712,120]
[342803570,1732143112718,-500.0,0.00056712,120]
[342803571,1732143112730,-672.22,0.00056712,120]
[342803572,1732143112740,-901.77,0.00056712,120]
[342803573,1732143112751,-500.0,0.00056712,120]
[342803574,1732143112763,-749.97,0.00056712,120]
[342803575,1732143112772,-500.0,0.00056712,120]
[342803576,1732143112781,-1584.28,0.00056712,120]
[342803577,1732143112790,-500.0,0.00056712,120]
[342803578,1732143112799,-500.0,0.00056712,120]
[342803579,1732143112808,-500.0,0.00056712,120]
[342803580,1732143112818,-698.15,0.00056712,120]
[342803581,1732143112827,-500.0,0.00056712,120]
[342803582,1732143112836,-500.0,0.00056712,120]
[342803583,1732143112845,-500.0,0.00056712,120]
[342803584,1732143112854,-266.31547916,0.00056712,120]
[342803585,1732143112863,-500.0,0.00056712,120]
[342803586,1732143112872,-550.21,0.00056712,120]
[342803587,1732143112881,-2000.0,0.00056712,30]
[342803588,1732143112893,-838.1,0.00056712,120]
[342803589,1732143112902,-500.0,0.00056712,120]
[342803590,1732143112911,-500.0,0.00056712,120]
[342803591,1732143112920,-151.0,0.00056712,120]
[342803592,1732143112931,-678.26,0.00056712,120]
[342803593,1732143112940,-500.0,0.00056712,120]
[342803594,1732143112949,-528.71,0.00056712,120]
[342803595,1732143112959,-577.89,0.00056712,120]
[342803596,1732143112970,-1058.89,0.00056712,120]
[342803597,1732143112980,-500.0,0.00056712,120]
[342803598,1732143112989,-500.0,0.00056712,120]
[342803599,1732143112998,-516.05,0.00056712,120]
[342803600,1732143113007,-500.0,0.00056712,120]
[342803601,1732143113016,-236.145402,0.00056712,120]
[342803602,1732143113026,-500.0,0.00056712,120]
[342803603,1732143113035,-1582.8,0.00056712,120]
[342803604,1732143113044,-512.91,0.00056712,120]
[342803605,1732143113054,-910.7,0.00056712,120]
[342803606,1732143113064,-500.0,0.00056712,120]
[342803607,1732143113073,-686.07,0.00056712,120]
[342803608,1732143113084,-500.0,0.00056712,120]
[342803609,1732143113095,-718.84,0.00056712,120]
[342803610,1732143113104,-500.0,0.00056712,120]
[342803611,1732143113115,-566.64,0.00056712,120]
[342803612,1732143113126,-500.0,0.00056712,120]
[342803613,1732143113136,-581.13,0.00056712,120]
[342803614,1732143113146,-558.19,0.00056712,120]
[342803615,1732143113156,-1275.31,0.00056712,120]
[342803616,1732143113168,-500.0,0.00056712,120]
[342803617,1732143113178,-500.0,0.00056712,120]
[342803618,1732143113187,-500.0,0.00056712,120]
[342803619,1732143113196,-646.55,0.00056712,120]
[342803620,1732143113206,-500.0,0.00056712,120]
[342803621,1732143113215,-889.52,0.00056712,120]
[342803622,1732143113224,-500.0,0.00056712,120]
[342803623,1732143113234,-1844.67,0.00056712,120]
[342803624,1732143113245,-1345.16,0.00056712,120]
[342803625,1732143113255,-500.0,0.00056712,120]
[342803626,1732143113266,-1354.36,0.00056712,120]
[342803627,1732143113278,-500.0,0.00056712,120]
[342803628,1732143113289,-500.0,0.00056712,120]
[342803629,1732143113299,-1126.54,0.00056712,120]
[342803630,1732143113309,-810.54,0.00056712,120]
[342803631,1732143113319,-1630.49,0.00056712,120]
[342803632,1732143113330,-551.86858476,0.00056712,120]
[342803633,1732143113340,-1061.11,0.00056712,120]
[342803634,1732143113350,-1539.37,0.00056712,120]
[342803635,1732143113358,-500.0,0.00056712,120]
[342803636,1732143113367,-500.0,0.00056712,120]
[342803637,1732143113377,-616.53,0.00056712,120]
[342803638,1732143113388,-500.0,0.00056712,120]
[342803639,1732143113399,-1163.7,0.00056712,120]
[342803640,1732143113411,-500.0,0.00056712,120]
[342803641,1732143113421,-500.0,0.00056712,120]
[342803642,1732143113431,-1697.48,0.00056712,120]
[342803643,1732143113441,-500.0,0.00056712,120]
[342803644,1732143113450,-768.83,0.00056712,120]
[342803645,1732143113459,-1494.04,0.00056712,120]
[342803646,1732143113468,-583.76,0.00056712,120]
[342803647,1732143113477,-500.0,0.00056712,120]
[342803648,1732143113486,-500.0,0.00056712,120]
[342803649,1732143113495,-500.0,0.00056712,120]
[342803650,1732143113504,-500.0,0.00056712,120]
[342803651,1732143113514,-1417.12,0.00056712,120]
[342803652,1732143113523,-500.0,0.00056712,120]
[342803653,1732143113533,-500.0,0.00056712,120]
[342803654,1732143113543,-514.86,0.00056712,120]
[342803655,1732143113553,-580.28,0.00056712,120]
[342803656,1732143113562,-500.0,0.00056712,120]
[342803657,1732143113573,-500.0,0.00056712,120]
[342803658,1732143113583,-500.0,0.00056712,120]
[342803659,1732143113592,-500.0,0.00056712,120]
[342803660,1732143113603,-625.85,0.00056712,120]
[342803661,1732143113613,-500.0,0.00056712,120]
[342803662,1732143113622,-835.63,0.00056712,120]
[342803663,1732143113632,-500.0,0.00056712,120]
[342803664,1732143113642,-1642.42,0.00056712,7]
[342803665,1732143113651,-500.0,0.00056712,120]
[342803666,1732143113661,-500.0,0.00056712,14]
[342803667,1732143113672,-1168.69,0.00056712,120]
[342803668,1732143113682,-500.0,0.00056712,120]
[342803669,1732143113691,-785.67,0.00056712,120]
[342803670,1732143113700,-526.48,0.00056712,120]
[342803671,1732143113710,-1791.8,0.00056712,120]
[342803672,1732143113719,-501.44923705,0.00056712,120]
[342803673,1732143113730,-500.0,0.00056712,120]
[342803674,1732143113742,-500.0,0.00056712,120]
[342803675,1732143113752,-500.0,0.00056712,120]
[342803676,1732143113762,-500.0,0.00056712,120]
[342803677,1732143113772,-500.0,0.00056712,120]
[342803678,1732143113781,-764.29,0.00056712,120]
[342803679,1732143113791,-937.69,0.00056712,120]
[342803680,1732143113800,-830.14,0.00056712,120]
[342803681,1732143113812,-500.0,0.00056712,58]
[342803682,1732143113823,-500.0,0.00056712,120]
[342803683,1732143113833,-500.0,0.00056712,120]
[342803684,1732143113842,-1926.82,0.00056712,120]
[342803685,1732143113851,-500.0,0.00056712,30]
[342803686,1732143113861,-513.97,0.00056712,120]
[342803687,1732143113870,-500.0,0.00056712,120]
[342803688,1732143113879,-1258.94,0.00056712,120]
[342803689,1732143113889,-615.91,0.00056712,120]
[342803690,1732143113901,-500.0,0.00056712,120]
[342803691,1732143113910,-739.53,0.00056712,120]
[342803692,1732143113919,-500.0,0.00056712,120]
[342803693,1732143113930,-2364.09,0.00056712,120]
[342803694,1732143113942,-500.0,0.00056712,120]
[342803695,1732143113952,-597.65568749,0.00056712,120]
[342803696,1732143113962,-518.9,0.00056712,120]
[342803697,1732143113972,-1516.8,0.00056712,120]
[342803698,1732143113983,-644.03,0.00056712,120]
[342803699,1732143113992,-1222.69,0.00056712,120]
[342803700,1732143114001,-689.07,0.00056712,120]
[342803701,1732143114010,-2792.61,0.00056712,120]
[342803702,1732143114019,-500.0,0.00056712,120]
[342803703,1732143114029,-578.76134962,0.00056712,120]
[342803704,1732143114039,-349.30754685,0.00056712,120]
[342803705,1732143114048,-598.66,0.00056712,120]
[342803706,1732143114058,-215.72071392,0.00056712,120]
[342803707,1732143114067,-517.71,0.00056712,120]
[342803708,1732143114077,-696.8,0.00056712,120]
[342803709,1732143114087,-670.6,0.00056712,120]
[342803710,1732143114096,-1622.41,0.00056712,120]
[342803711,1732143114106,-500.0,0.00056712,120]
[342803712,1732143114116,-732.47,0.00056712,120]
[342803713,1732143114125,-500.0,0.00056712,120]
[342803714,1732143114135,-500.0,0.00056712,120]
[342803715,1732143114144,-500.0,0.00056712,120]
[342803716,1732143114154,-500.0,0.00056712,120]
[342803717,1732143114163,-3752.95,0.00056712,120]
[342803718,1732143114172,-500.0,0.00056712,120]
[342803719,1732143114182,-694.86,0.00056712,120]
[342803720,1732143114191,-500.0,0.00056712,120]
[342803721,1732143114201,-500.0,0.00056712,120]
[342803722,1732143114211,-527.72,0.00056712,120]
[342803723,1732143114221,-151.0,0.00056712,120]
[342803724,1732143114231,-2754.45,0.00056712,120]
[342803725,1732143114241,-500.0,0.00056712,120]
[342803726,1732143114251,-500.0,0.00056712,60]
[342803727,1732143114262,-151.0,0.00056712,120]
[342803728,1732143114272,-1552.42,0.00056712,120]
[342803729,1732143114282,-777.0,0.00056712,120]
[342803730,1732143114291,-750.37,0.00056712,120]
[342803731,1732143114301,-586.88,0.00056712,120]
[342803732,1732143114313,-500.0,0.00056712,120]
[342803733,1732143114326,-151.0,0.00056712,120]
[342803734,1732143114336,-546.79,0.00056712,120]
[342803735,1732143114345,-500.0,0.00056712,120]
[342803736,1732143114355,-1410.35,0.00056712,120]
[342803737,1732143114364,-151.0,0.00056712,120]
[342803738,1732143114375,-622.81,0.00056712,120]
[342803739,1732143114387,-500.0,0.00056712,120]
[342803740,1732143114397,-1078.42,0.00056712,120]
[342803741,1732143114407,-2348.91,0.00056712,120]
[342803742,1732143114417,-1803.88,0.00056712,120]
[342803743,1732143114427,-875.42,0.00056712,120]
[342803744,1732143114437,-151.0,0.00056712,120]
[342803745,1732143114446,-508.19314332,0.00056712,120]
[342803746,1732143114456,-908.45,0.00056712,120]
[342803747,1732143114466,-1745.98,0.00056712,120]
[342803748,1732143114479,-643.69,0.00056712,120]
[342803749,1732143114488,-659.6,0.00056712,120]
[342803750,1732143114497,-500.0,0.00056712,120]
[342803751,1732143114506,-1212.54,0.00056712,120]
[342803752,1732143114515,-2042.25,0.00056712,120]
[342803753,1732143114524,-828.06,0.00056712,120]
[342803754,1732143114533,-151.0,0.00056712,120]
[342803755,1732143114542,-646.63,0.00056712,120]
[342803756,1732143114552,-806.31,0.00056712,120]
[342803757,1732143114561,-500.0,0.00056712,120]
[342803758,1732143114571,-1287.88,0.00056712,120]
[342803759,1732143114580,-1410.77,0.00056712,120]
[342803760,1732143114589,-500.0,0.00056712,120]
[342803761,1732143114599,-500.0,0.00056712,120]
[342803762,1732143114608,-623.91,0.00056712,120]
[342803763,1732143114617,-500.0,0.00056712,120]
[342803764,1732143114626,-500.0,0.00056712,120]
[342803765,1732143114636,-766.21,0.00056712,120]
[342803766,1732143114645,-233.32560066,0.00056712,120]
[342803767,1732143114654,-1000.52,0.00056712,120]
[342803768,1732143114664,-500.0,0.00056712,120]
[342803769,1732143114674,-500.0,0.00056712,120]
[342803770,1732143114684,-1013.49,0.00056712,120]
[342803771,1732143114694,-500.0,0.00056712,120]
[342803772,1732143114703,-811.56,0.00056712,120]
[342803773,1732143114712,-500.0,0.00056712,120]
[342803774,1732143114722,-3361.2,0.00056712,120]
[342803775,1732143114731,-633.81,0.00056712,120]
[342803776,1732143114740,-1185.33,0.00056712,120]
[342803777,1732143114749,-838.48,0.00056712,120]
[342803778,1732143114758,-1382.6,0.00056712,120]
[342803779,1732143114768,-500.0,0.00056712,120]
[342803780,1732143114778,-500.0,0.00056712,120]
[342803781,1732143114788,-2198.56,0.00056712,120]
[342803782,1732143114797,-500.0,0.00056712,120]
[342803783,1732143114807,-658.16,0.00056712,120]
[342803784,1732143114816,-500.0,0.00056712,120]
[342803785,1732143114825,-500.0,0.00056712,120]
[342803786,1732143114834,-500.0,0.00056712,120]
[342803787,1732143114843,-500.0,0.00056712,120]
[342803788,1732143114852,-581.06,0.00056712,120]
[342803789,1732143114861,-500.0,0.00056712,120]
[342803790,1732143114870,-843.03,0.00056712,120]
[342803791,1732143114880,-500.0,0.00056712,120]
[342803792,1732143114893,-665.72,0.00056712,120]
[342803793,1732143114902,-789.82,0.00056712,120]
[342803794,1732143114911,-773.4,0.00056712,120]
[342803795,1732143114921,-660.24,0.00056712,120]
[342803796,1732143114932,-500.0,0.00056712,120]
[342803797,1732143114942,-504.35,0.00056712,120]
[342803798,1732143114951,-2411.2,0.00056712,120]
[342803799,1732143114960,-224.86874086,0.00056712,120]
[342803800,1732143114973,-3997.56,0.00056712,120]
[342803801,1732143114983,-500.0,0.00056712,120]
[342803802,1732143114992,-490.71494091,0.00056712,120]
[342803803,1732143115002,-500.0,0.00056712,120]
[342803804,1732143115014,-500.0,0.00056712,120]
[342803805,1732143115025,-220.349852,0.00056712,120]
[342803806,1732143115035,-178.477726,0.00056712,120]
[342803807,1732143115045,-559.66,0.00056712,120]
[342803808,1732143115055,-1755.1,0.00056712,120]
[342803809,1732143115065,-500.0,0.00056712,120]
[342803810,1732143115074,-500.0,0.00056712,120]
[342803811,1732143115084,-1021.42,0.00056712,120]
[342803812,1732143115094,-968.59,0.00056712,120]
[342803813,1732143115103,-500.0,0.00056712,120]
[342803814,1732143115113,-747.74,0.00056712,120]
[342803815,1732143115123,-650.26,0.00056712,120]
[342803816,1732143115134,-500.0,0.00056712,120]
[342803817,1732143115144,-552.66,0.00056712,120]
[342803818,1732143115153,-528.53,0.00056712,120]
[342803819,1732143115162,-430.5581527,0.00056712,120]
[342803820,1732143115172,-661.12,0.00056712,120]
[342803821,1732143115182,-4504.33,0.00056712,120]
[342803822,1732143115192,-500.0,0.00056712,120]
[342803823,1732143115201,-305.04166125,0.00056712,120]
[342803824,1732143115211,-500.0,0.00056712,120]
[342803825,1732143115221,-1414.7,0.00056712,120]
[342803826,1732143115230,-500.0,0.00056712,120]
[342803827,1732143115240,-1839.1,0.00056712,20]
[342803828,1732143115250,-500.0,0.00056712,120]
[342803829,1732143115259,-600.15,0.00056712,120]
[342803830,1732143115269,-500.0,0.00056712,120]
[342803831,1732143115278,-500.0,0.00056712,120]
[342803832,1732143115288,-639.71,0.00056712,120]
[342803833,1732143115297,-271.01962399,0.00056712,120]
[342803834,1732143115307,-1685.02,0.00056712,120]
[342803835,1732143115316,-500.0,0.00056712,120]
[342803836,1732143115326,-643.92,0.00056712,120]
[342803837,1732143115335,-500.0,0.00056712,120]
[342803838,1732143115345,-1838.85,0.00056712,120]
[342803839,1732143115354,-500.0,0.00056712,120]
[342803840,1732143115364,-503.41,0.00056712,120]
[342803841,1732143115373,-777.36,0.00056712,120]
[342803842,1732143115383,-236.15813578,0.00056712,120]
[342803843,1732143115392,-1088.52,0.00056712,120]
[342803844,1732143115401,-3963.88,0.00056712,120]
[342803845,1732143115411,-500.0,0.00056712,120]
[342803846,1732143115421,-500.0,0.00056712,120]
[342803847,1732143115432,-632.9457608,0.00056712,120]
[342803848,1732143115442,-500.0,0.00056712,120]
[342803849,1732143115451,-508.93,0.00056712,120]
[342803850,1732143115678,-500.0,0.00056712,120]
[342803851,1732143115696,-500.0,0.00056712,120]
[342803852,1732143115706,-522.18,0.00056712,120]
[342803853,1732143115715,-674.72,0.00056712,120]
[342803854,1732143115725,-1573.1,0.00056712,120]
[342803855,1732143115734,-500.0,0.00056712,120]
[342803856,1732143115744,-500.0,0.00056712,120]
[342803857,1732143115753,-500.0,0.00056712,120]
[342803858,1732143115763,-585.36992252,0.00056712,120]
[342803859,1732143115773,-1344.45,0.00056712,120]
[342803860,1732143115784,-500.0,0.00056712,120]
[342803861,1732143115794,-695.34,0.00056712,120]
[342803862,1732143115803,-5030.76,0.00056712,120]
[342803863,1732143115812,-993.23,0.00056712,120]
[342803864,1732143115820,-530.39,0.00056712,120]
[342803865,1732143115830,-1007.71,0.00056712,120]
[342803866,1732143115840,-845.57,0.00056712,120]
[342803867,1732143115850,-1508.05,0.00056712,120]
[342803868,1732143115860,-1000.0,0.00056712,30]
[342803869,1732143115869,-500.0,0.00056712,120]
[342803870,1732143115880,-1949.27,0.00056712,120]
[342803871,1732143115892,-635.4,0.00056712,120]
[342803872,1732143115902,-3671.8,0.00056712,120]
[342803873,1732143115912,-349.16739981,0.00056712,120]
[342803874,1732143115923,-873.15,0.00056712,120]
[342803875,1732143115934,-1275.78,0.00056712,120]
[342803876,1732143115944,-500.0,0.00056712,120]
[342803877,1732143115953,-500.0,0.00056712,120]
[342803878,1732143115963,-1300.6,0.00056712,120]
[342803879,1732143115976,-1078.43,0.00056712,120]
[342803880,1732143115987,-500.0,0.00056712,120]
[342803881,1732143115996,-1015.57,0.00056712,120]
[342803882,1732143116006,-729.83,0.00056712,120]
[342803883,1732143116015,-562.04,0.00056712,120]
[342803884,1732143116025,-2596.1,0.00056712,120]
[342803885,1732143116035,-479.40120073,0.00056712,120]
[342803886,1732143116044,-2222.66,0.00056712,120]
[342803887,1732143116055,-500.0,0.00056712,120]
[342803888,1732143116065,-1080.64,0.00056712,120]
[342803889,1732143116075,-852.14,0.00056712,120]
[342803890,1732143116085,-569.32,0.00056712,120]
[342803891,1732143116095,-500.0,0.00056712,120]
[342803892,1732143116104,-509.24,0.00056712,120]
[342803893,1732143116113,-700.0,0.00056712,120]
[342803894,1732143116123,-928.5,0.00056712,120]
[342803895,1732143116133,-500.0,0.00056712,120]
[342803896,1732143116144,-500.0,0.00056712,120]
[342803897,1732143116155,-1806.6,0.00056712,120]
[342803898,1732143116166,-1129.79,0.00056712,120]
[342803899,1732143116177,-500.0,0.00056712,120]
[342803900,1732143116187,-500.0,0.00056712,120]
[342803901,1732143116197,-2425.19,0.00056712,120]
[342803902,1732143116207,-500.0,0.00056712,120]
[342803903,1732143116217,-625.0,0.00056712,120]
[342803904,1732143116226,-500.0,0.00056712,120]
[342803905,1732143116236,-500.0,0.00056712,120]
[342803906,1732143116245,-1018.93,0.00056712,120]
[342803907,1732143116254,-2073.72,0.00056712,120]
[342803908,1732143116264,-500.0,0.00056712,120]
[342803909,1732143116274,-1011.93,0.00056712,120]
[342803910,1732143116284,-1257.41,0.00056712,120]
[342803911,1732143116294,-500.0,0.00056712,120]
[342803912,1732143116304,-500.0,0.00056712,120]
[342803913,1732143116314,-1328.54,0.00056712,120]
[342803914,1732143116323,-893.2,0.00056712,120]
[342803915,1732143116333,-878.56,0.00056712,120]
[342803916,1732143116343,-1954.12,0.00056712,120]
[342803917,1732143116352,-1107.33,0.00056712,120]
[342803918,1732143116362,-5394.68,0.00056712,120]
[342803919,1732143116371,-500.0,0.00056712,120]
[342803920,1732143116381,-283.38874626,0.00056712,60]
[342803921,1732143116391,-500.0,0.00056712,120]
[342803922,1732143116402,-500.0,0.00056712,120]
[342803923,1732143116411,-543.1,0.00056712,120]
[342803924,1732143116423,-965.73,0.00056712,120]
[342803925,1732143116433,-500.0,0.00056712,120]
[342803926,1732143116443,-500.0,0.00056712,120]
[342803927,1732143116453,-500.0,0.00056712,120]
[342803928,1732143116462,-500.0,0.00056712,120]
[342803929,1732143116472,-211.12592653,0.00056712,120]
[342803930,1732143116483,-1317.76,0.00056712,120]
[342803931,1732143116493,-594.46,0.00056712,120]
[342803932,1732143116503,-1510.86,0.00056712,120]
[342803933,1732143116515,-1617.12,0.00056712,120]
[342803934,1732143116526,-657.08,0.00056712,120]
[342803935,1732143116536,-4865.56,0.00056712,120]
[342803936,1732143116545,-628.07,0.00056712,120]
[342803937,1732143116556,-500.0,0.00056712,120]
[342803938,1732143116566,-500.0,0.00056712,120]
[342803939,1732143116578,-500.0,0.00056712,120]
[342803940,1732143116589,-2529.98,0.00056712,120]
[342803941,1732143116599,-412.60403549,0.00056712,120]
[342803942,1732143116609,-635.24,0.00056712,120]
[342803943,1732143116619,-750.97,0.00056712,120]
[342803944,1732143116628,-500.0,0.00056712,120]
[342803945,1732143116638,-1761.11,0.00056712,120]
[342803946,1732143116648,-624.76,0.00056712,120]
[342803947,1732143116658,-500.0,0.00056712,120]
[342803948,1732143116668,-46265.17,0.00056712,120]
[342803949,1732143116679,-500.0,0.00056712,120]
[342803950,1732143116688,-500.0,0.00056712,120]
[342803951,1732143116698,-644.52,0.00056712,120]
[342803952,1732143116707,-880.93,0.00056712,120]
[342803953,1732143116719,-500.0,0.00056712,120]
[342803954,1732143116728,-4390.12,0.00056712,120]
[342803955,1732143116739,-212.3703948,0.00056712,120]
[342803956,1732143116748,-500.0,0.00056712,120]
[342803957,1732143116760,-3641.91,0.00056712,120]
[342803958,1732143116770,-500.0,0.00056712,120]
[342803959,1732143116781,-2046.77,0.00056712,120]
[342803960,1732143116791,-500.0,0.00056712,120]
[342803961,1732143116801,-508.03118746,0.00056712,120]
[342803962,1732143116811,-500.0,0.00056712,120]
[342803963,1732143116823,-519.31,0.00056712,120]
[342803964,1732143116832,-1582.94,0.00056712,120]
[342803965,1732143116842,-1566.08,0.00056712,120]
[342803966,1732143116853,-1540.18,0.00056712,120]
[342803967,1732143116862,-524.71532464,0.00056712,120]
[342803968,1732143116871,-500.0,0.00056712,120]
[342803969,1732143116881,-500.0,0.00056712,120]
[342803970,1732143116895,-200.0,0.00056712,10]
[342803971,1732143116905,-32182.96,0.00056712,120]
[342803972,1732143116914,-500.0,0.00056712,120]
[342803973,1732143116924,-2395.44,0.00056712,120]
[342803974,1732143116936,-500.0,0.00056712,120]
[342803975,1732143116946,-500.0,0.00056712,120]
[342803976,1732143116956,-774.88,0.00056712,120]
[342803977,1732143116967,-500.0,0.00056712,120]
[342803978,1732143116977,-500.0,0.00056712,120]
[342803979,1732143116987,-500.0,0.00056712,120]
[342803980,1732143116998,-500.0,0.00056712,120]
[342803981,1732143117008,-3018.97,0.00056712,120]
[342803982,1732143117018,-1221.56,0.00056712,120]
[342803983,1732143117028,-949.33,0.00056712,120]
[342803984,1732143117038,-500.0,0.00056712,120]
[342803985,1732143117048,-500.0,0.00056712,120]
[342803986,1732143117059,-500.0,0.00056712,120]
[342803987,1732143117068,-500.0,0.00056712,120]
[342803988,1732143117080,-512.47,0.00056712,120]
[342803989,1732143117089,-500.0,0.00056712,120]
[342803990,1732143117099,-975.73,0.00056712,120]
[342803991,1732143117110,-500.0,0.00056712,120]
[342803992,1732143117120,-1680.87,0.00056712,120]
[342803993,1732143117131,-2068.97,0.00056712,120]
[342803994,1732143117143,-509.92,0.00056712,120]
[342803995,1732143117153,-500.0,0.00056712,120]
[342803996,1732143117163,-2386.08,0.00056712,120]
[342803997,1732143117173,-850.0,0.00056712,120]
[342803998,1732143117185,-2587.78,0.00056712,120]
[342803999,1732143117195,-1481.97,0.00056712,120]
[342804000,1732143117204,-500.0,0.00056712,120]
[342804001,1732143117214,-1478.74,0.00056712,120]
[342804002,1732143117224,-500.0,0.00056712,120]
[342804003,1732143117234,-500.0,0.00056712,120]
[342804004,1732143117244,-580.13,0.00056712,120]
[342804005,1732143117253,-500.0,0.00056712,120]
[342804006,1732143117263,-500.0,0.00056712,120]
[342804007,1732143117274,-500.0,0.00056712,120]
[342804008,1732143117285,-1753.89,0.00056712,120]
[342804009,1732143117295,-500.0,0.00056712,120]
[342804010,1732143117304,-500.0,0.00056712,120]
[342804011,1732143117315,-816.51,0.00056712,120]
[342804012,1732143117326,-10880.09,0.00056712,120]
[342804013,1732143117335,-2245.37,0.00056712,120]
[342804014,1732143117345,-500.0,0.00056712,120]
[342804015,1732143117354,-500.0,0.00056712,120]